bitfinex-derivatives/quotes_BTCF0:USTF0_20240910
["timestamp","ask_amount","ask_price","bid_price","bid_amount"]
[1726005488901,0.005,57567.0,57566.0,0.38786105]
[1726005489200,0.005,57567.0,57566.0,0.3010153]
[1726005489600,0.005,57567.0,57566.0,0.38787167]
[1726005490192,0.005,57567.0,57566.0,0.3010153]
[1726005490900,0.005,57567.0,57566.0,0.30119064]
[1726005491998,0.005,57567.0,57566.0,0.29371954]
[1726005492395,0.005,57567.0,57566.0,0.206852]
[1726005492895,0.005,57567.0,57566.0,0.12]
[1726005493689,0.03315491,57567.0,57566.0,0.12]
[1726005494092,0.10874442,57567.0,57566.0,0.12]
[1726005494400,0.13689933,57567.0,57566.0,0.12]
[1726005496000,0.13689932,57567.0,57566.0,0.12]
[1726005499206,0.13689944,57567.0,57566.0,0.12]
[1726005500603,0.10874442,57567.0,57566.0,0.21441064]
[1726005500804,0.005,57567.0,57566.0,0.21441064]
[1726005503613,0.005,57567.0,57566.0,0.09441064]
[1726005503918,0.005,57567.0,57566.0,0.21441064]
[1726005507920,0.086853,57565.0,57562.0,0.08683412]
[1726005508124,0.2122,57564.0,57561.0,0.06944869]
[1726005508423,0.173716,57562.0,57561.0,0.05208729]
[1726005508619,0.086869,57556.0,57553.0,0.12]
[1726005508929,0.10375068,57554.0,57553.0,0.12]
[1726005509230,0.086874,57552.0,57550.0,0.0496]
[1726005509927,0.086874,57552.0,57549.0,0.52651079]
[1726005511422,0.087874,57552.0,57549.0,0.54051079]
[1726005511729,0.087874,57552.0,57550.0,0.013]
[1726005512817,0.087874,57552.0,57549.0,0.54051079]
[1726005513020,0.087874,57552.0,57549.0,0.54751079]
[1726005513416,0.086874,57552.0,57549.0,0.53951079]
[1726005513812,0.086874,57552.0,57549.0,0.013]
[1726005514924,0.086874,57552.0,57550.0,0.005]
[1726005515320,0.086875,57551.0,57550.0,0.005]
[1726005515733,0.086875,57551.0,57550.0,0.18184075]
[1726005516229,0.086875,57551.0,57550.0,0.08683412]
[1726005516426,0.086875,57551.0,57550.0,0.005]
[1726005516629,0.086875,57551.0,57550.0,0.01]
[1726005517727,0.086875,57551.0,57550.0,0.07930161]
[1726005517935,0.086875,57551.0,57550.0,0.01]
[1726005519524,0.17375,57551.0,57550.0,0.01]
[1726005520834,0.17375,57551.0,57550.0,0.06195858]
[1726005521831,0.17375,57551.0,57550.0,0.01]
[1726005522436,0.17375,57551.0,57550.0,0.06195858]
[1726005523130,0.17375,57551.0,57550.0,0.01]
[1726005523326,0.17375,57551.0,57550.0,0.06195858]
[1726005523838,0.17375,57551.0,57550.0,0.01]
[1726005526727,0.173782,57540.0,57539.0,0.004]
[1726005527035,0.173782,57540.0,57523.0,0.0533]
[1726005527036,0.206891,57540.0,57535.0,0.05194498]
[1726005527243,0.206891,57540.0,57524.0,0.12]
[1726005527244,0.0869,57534.0,57533.0,0.05194498]
[1726005527733,0.0869,57534.0,57532.0,0.05194498]
[1726005527734,0.173804,57533.0,57532.0,0.05194498]
[1726005528131,0.173804,57533.0,57529.0,0.05194498]
[1726005528132,0.086903,57532.0,57529.0,0.05194498]
[1726005528331,0.12,57530.0,57523.0,0.0493]
[1726005528738,0.12,57526.0,57523.0,0.0493]
[1726005528921,0.086915,57524.0,57523.0,0.0493]
[1726005529321,1.208435,57524.0,57523.0,0.0493]
[1726005531135,1.2364043,57524.0,57523.0,0.0493]
[1726005531321,1.3233193,57524.0,57523.0,0.0523]
[1726005532040,1.3233193,57524.0,57523.0,0.0503]
[1726005532239,1.3233193,57524.0,57523.0,0.0523]
[1726005538639,1.4102343,57524.0,57523.0,0.003]
[1726005550633,0.2887143,57524.0,57523.0,0.003]
[1726005550834,0.4087143,57524.0,57523.0,0.003]
[1726005560547,1.5302343,57524.0,57523.0,0.003]
[1726005560739,1.62141451,57524.0,57523.0,0.003]
[1726005560946,1.70832951,57524.0,57523.0,0.003]
[1726005561151,0.58680951,57524.0,57523.0,0.003]
[1726005562256,0.260772,57518.0,57517.0,0.0472]
[1726005562450,0.47195221,57518.0,57517.0,0.0472]
[1726005563551,0.47195221,57518.0,57517.0,0.0562]
[1726005563953,0.47295221,57518.0,57517.0,0.0652]
[1726005564353,0.47280925,57518.0,57517.0,0.0652]
[1726005565353,1.59440925,57518.0,57517.0,0.0652]
[1726005565558,1.59440925,57518.0,57517.0,0.018]
[1726005565947,1.71536698,57518.0,57517.0,0.018]
[1726005566351,1.59440925,57518.0,57517.0,0.018]
[1726005566950,1.71536698,57518.0,57517.0,0.018]
[1726005567152,0.260787,57515.0,57514.0,0.0492]
[1726005567351,0.35182425,57515.0,57514.0,0.0492]
[1726005567546,1.47342425,57515.0,57514.0,0.0492]
[1726005568754,1.382387,57515.0,57514.0,0.0492]
[1726005568949,1.383387,57515.0,57514.0,0.0592]
[1726005569555,0.783387,57515.0,57514.0,0.0592]
[1726005569758,0.784387,57515.0,57514.0,0.0692]
[1726005572757,0.262787,57515.0,57514.0,0.0692]
[1726005572958,0.784387,57515.0,57514.0,0.0692]
[1726005573153,0.262787,57515.0,57514.0,0.0692]
[1726005576748,0.261787,57515.0,57514.0,0.0622]
[1726005576949,0.260787,57515.0,57514.0,0.0542]
[1726005579158,0.086929,57515.0,57514.0,0.0542]
[1726005579466,0.086929,57515.0,57514.0,0.141131]
[1726005580163,0.086929,57515.0,57514.0,0.0542]
[1726005581070,0.004,57522.0,57514.0,1.1758]
[1726005581362,0.10755445,57525.0,57514.0,1.1758]
[1726005581363,0.004,57525.0,57524.0,0.086915]
[1726005581556,0.004,57532.0,57524.0,0.086915]
[1726005581557,0.004,57532.0,57531.0,0.086905]
[1726005581760,0.206896,57537.0,57531.0,0.086905]
[1726005581957,0.206896,57537.0,57531.0,0.12]
[1726005581958,0.12,57537.0,57531.0,0.12]
[1726005582260,0.02798541,57539.0,57534.0,0.12]
[1726005582466,0.086891,57540.0,57534.0,0.12]
[1726005582467,0.086891,57540.0,57535.0,0.0499]
[1726005582959,0.12,57543.0,57535.0,0.0499]
[1726005582960,0.086888,57543.0,57535.0,0.0499]
[1726005583160,0.11530439,57543.0,57538.0,0.086894]
[1726005583763,0.012,57540.0,57539.0,0.086893]
[1726005584259,0.012,57543.0,57539.0,0.086893]
[1726005585056,0.002,57540.0,57539.0,0.086893]
[1726005585457,0.002,57540.0,57539.0,0.608293]
[1726005585867,0.012,57543.0,57539.0,0.608293]
[1726005586160,0.014,57543.0,57539.0,0.086893]
[1726005586364,0.007,57540.0,57539.0,0.087893]
[1726005586666,0.002,57543.0,57540.0,0.206891]
[1726005586968,0.009,57543.0,57540.0,0.206891]
[1726005587666,0.002,57543.0,57540.0,0.206891]
[1726005587859,0.11494313,57545.0,57540.0,0.206891]
[1726005588561,0.02805913,57545.0,57540.0,0.206891]
[1726005588766,0.004,57548.0,57540.0,0.206891]
[1726005588957,0.086884,57545.0,57540.0,0.206891]
[1726005589152,0.086884,57545.0,57541.0,0.08689]
[1726005589862,0.005,57543.0,57541.0,0.08689]
[1726005590657,0.013,57543.0,57541.0,0.08689]
[1726005591257,0.005,57543.0,57541.0,0.08689]
[1726005591863,0.086885,57544.0,57541.0,0.08689]
[1726005592365,0.086885,57544.0,57542.0,0.086887]
[1726005592960,0.091885,57544.0,57542.0,0.086887]
[1726005593267,0.100885,57544.0,57542.0,0.086887]
[1726005594559,0.101885,57544.0,57542.0,0.088887]
[1726005600258,0.015,57544.0,57543.0,0.086887]
[1726005600461,0.004,57551.0,57550.0,0.173752]
[1726005600762,0.03174966,57558.0,57557.0,0.086866]
[1726005600959,0.004,57565.0,57564.0,0.086855]
[1726005601161,0.086844,57571.0,57564.0,0.12]
[1726005601162,0.02883505,57567.0,57564.0,0.12]
[1726005601365,0.004,57568.0,57566.0,0.086851]
[1726005602065,0.004,57568.0,57565.0,0.0936]
[1726005602572,0.01,57567.0,57565.0,0.0936]
[1726005602759,0.01,57567.0,57566.0,0.001]
[1726005603369,0.01,57567.0,57565.0,0.180453]
[1726005603565,0.01,57567.0,57566.0,0.086852]
[1726005604571,0.005,57568.0,57566.0,0.086852]
[1726005604770,0.005,57568.0,57566.0,0.087852]
[1726005605173,0.005,57568.0,57566.0,0.088852]
[1726005605174,0.0035,57568.0,57566.0,0.088852]
[1726005606063,0.0035,57568.0,57566.0,0.087852]
[1726005606261,0.0045,57568.0,57566.0,0.088852]
[1726005607274,0.0045,57568.0,57566.0,0.087852]
[1726005607574,0.0045,57568.0,57566.0,0.088852]
[1726005610367,0.0045,57568.0,57567.0,0.08685]
[1726005610877,0.0045,57568.0,57567.0,0.28685]
[1726005611573,0.0035,57568.0,57567.0,0.28885]
[1726005616879,0.0035,57568.0,57567.0,0.3757]
[1726005618075,0.0035,57568.0,57567.0,0.3737]
[1726005618382,0.0035,57568.0,57567.0,0.3757]
[1726005618880,0.0035,57568.0,57567.0,0.28885]
[1726005619065,0.0035,57568.0,57567.0,1.40997]
[1726005620973,0.10705445,57568.0,57567.0,1.32312]
[1726005621177,0.13520795,57568.0,57567.0,1.32312]
[1726005621474,0.13520795,57568.0,57567.0,1.40997]
[1726005621678,0.0316535,57568.0,57567.0,1.40997]
[1726005621871,0.10659179,57568.0,57567.0,1.32308488]
[1726005622067,0.13474529,57568.0,57567.0,1.32308488]
[1726005622269,0.0316535,57568.0,57567.0,1.32308488]
[1726005622475,0.03165355,57568.0,57567.0,1.32308488]
[1726005623175,0.03165355,57568.0,57567.0,0.20196488]
[1726005624280,0.03165355,57568.0,57567.0,0.20885]
[1726005625285,0.12495773,57572.0,57571.0,0.086844]
[1726005625587,0.21282366,57572.0,57571.0,0.206844]
[1726005626283,0.02847011,57573.0,57572.0,0.086843]
[1726005626477,0.30323339,57574.0,57572.0,0.086843]
[1726005626782,0.16587101,57573.0,57572.0,0.086843]
[1726005627081,0.13771748,57573.0,57572.0,0.086843]
[1726005627280,0.16587101,57573.0,57572.0,0.086843]
[1726005627481,0.16587101,57573.0,57572.0,0.087843]
[1726005627679,0.13771748,57573.0,57572.0,0.087843]
[1726005627879,0.16587101,57573.0,57572.0,0.087843]
[1726005628079,0.23996071,57573.0,57572.0,0.087843]
[1726005628282,0.16618227,57573.0,57572.0,0.001]
[1726005628784,0.16618227,57573.0,57572.0,0.002]
[1726005628785,0.16609618,57573.0,57572.0,0.002]
[1726005628988,0.02849187,57575.0,57574.0,0.08684]
[1726005629187,0.19029344,57577.0,57574.0,0.20684]
[1726005629491,0.02815303,57576.0,57575.0,0.086838]
[1726005630888,0.02815303,57576.0,57575.0,0.087838]
[1726005631082,0.13161047,57576.0,57575.0,0.087838]
[1726005631282,0.02815303,57576.0,57575.0,0.087838]
[1726005631491,0.13161047,57576.0,57575.0,0.087838]
[1726005631790,0.13161047,57576.0,57575.0,0.088838]
[1726005632298,0.13161052,57576.0,57575.0,0.088838]
[1726005632594,0.02815308,57576.0,57575.0,0.088838]
[1726005634087,0.02815308,57576.0,57575.0,0.208838]
[1726005635189,0.13161052,57576.0,57575.0,0.208838]
[1726005635986,0.13161052,57576.0,57568.0,0.02835592]
[1726005635987,0.02815308,57576.0,57568.0,0.02835592]
[1726005636191,0.11513245,57577.0,57564.0,0.0469]
[1726005636192,0.09209708,57575.0,57569.0,0.086847]
[1726005636491,0.09209708,57574.0,57569.0,0.086847]
[1726005636691,0.12089459,57576.0,57575.0,0.086838]
[1726005636898,0.09215644,57576.0,57575.0,0.086838]
[1726005637092,0.16376913,57576.0,57575.0,0.086838]
[1726005637400,0.24674254,57576.0,57575.0,0.086838]
[1726005637990,0.24674254,57576.0,57575.0,0.206838]
[1726005638393,0.24774254,57576.0,57575.0,0.206838]
[1726005638794,0.16476913,57576.0,57575.0,0.206838]
[1726005638993,0.11213695,57576.0,57575.0,0.206838]
[1726005639193,0.16476913,57576.0,57575.0,0.206838]
[1726005639393,0.1392088,57576.0,57575.0,0.206838]
[1726005639594,0.16476913,57576.0,57575.0,0.206838]
[1726005639783,0.16576913,57576.0,57575.0,0.207838]
[1726005640394,0.16676913,57576.0,57575.0,0.208838]
[1726005641086,0.16676913,57576.0,57575.0,0.2367081]
[1726005641286,0.16476913,57576.0,57575.0,0.2357081]
[1726005641487,0.16576913,57576.0,57575.0,0.2367081]
[1726005642594,0.09290749,57576.0,57575.0,0.2367081]
[1726005642798,0.09290749,57576.0,57575.0,0.1167081]
[1726005643096,0.002,57576.0,57575.0,0.2367081]
[1726005644497,0.001,57576.0,57575.0,0.2357081]
[1726005644697,0.002,57576.0,57575.0,0.2367081]
[1726005644899,0.002,57576.0,57575.0,0.088838]
[1726005645081,0.002,57576.0,57575.0,0.208838]
[1726005645286,0.002,57576.0,57575.0,0.26088991]
[1726005646095,0.002,57576.0,57575.0,0.208838]
[1726005649997,0.088837,57576.0,57575.0,0.002]
[1726005650291,0.11699017,57576.0,57575.0,0.002]
[1726005650499,0.20382717,57576.0,57575.0,0.002]
[1726005650703,0.30749601,57576.0,57575.0,0.002]
[1726005651101,0.20382717,57576.0,57575.0,0.002]
[1726005651804,0.20382951,57576.0,57575.0,0.002]
[1726005652399,0.30745214,57576.0,57575.0,0.002]
[1726005652597,0.20382951,57576.0,57575.0,0.002]
[1726005656305,0.3074151,57576.0,57575.0,0.002]
[1726005656706,0.3942522,57576.0,57575.0,0.002]
[1726005657209,0.29066661,57576.0,57575.0,0.002]
[1726005657410,0.39424523,57576.0,57575.0,0.002]
[1726005658092,0.262511,57576.0,57575.0,0.002]
[1726005660302,1.383551,57576.0,57575.0,0.002]
[1726005660611,0.12,57571.0,57565.0,0.004]
[1726005660911,0.12,57566.0,57560.0,0.05202012]
[1726005661116,0.086858,57562.0,57561.0,0.05202012]
[1726005661302,0.08686,57561.0,57560.0,0.05202012]
[1726005661608,0.173722,57560.0,57559.0,0.05202012]
[1726005662506,0.086863,57559.0,57558.0,0.05202012]
[1726005662704,0.086861,57560.0,57557.0,0.05202012]
[1726005663013,0.086863,57559.0,57558.0,0.05202012]
[1726005663198,0.173726,57559.0,57558.0,0.05202012]
[1726005663600,0.086864,57558.0,57557.0,0.05202012]
[1726005664112,0.086864,57558.0,57557.0,0.06202012]
[1726005664507,0.086864,57558.0,57557.0,0.01]
[1726005665116,0.086864,57558.0,57557.0,0.0679683]
[1726005665504,0.086864,57558.0,57557.0,0.0579683]
[1726005666209,0.086864,57558.0,57557.0,0.0639683]
[1726005666412,0.086864,57558.0,57557.0,0.012]
[1726005668110,0.086864,57558.0,57557.0,0.0639683]
[1726005668313,0.086864,57558.0,57557.0,0.012]
[1726005669220,0.173728,57558.0,57557.0,0.012]
[1726005673422,1.381792,57558.0,57557.0,0.012]
[1726005673615,0.086879,57548.0,57547.0,0.0485]
[1726005674319,0.380637,57548.0,57547.0,0.0485]
[1726005674710,0.380637,57548.0,57538.0,0.0485]
[1726005674711,0.086893,57539.0,57538.0,0.0485]
[1726005674910,0.086893,57539.0,57538.0,0.0957]
[1726005675626,0.086893,57539.0,57538.0,0.182594]
[1726005675826,0.11529192,57539.0,57538.0,0.182594]
[1726005676123,0.11629192,57539.0,57538.0,0.196594]
[1726005677015,0.11729192,57539.0,57538.0,0.210594]
[1726005678016,0.11729192,57539.0,57538.0,0.1237]
[1726005679110,0.20418492,57539.0,57538.0,0.1237]
[1726005680724,0.81247792,57539.0,57538.0,0.1237]
[1726005680927,1.41247792,57539.0,57538.0,0.0765]
[1726005682424,1.53247792,57539.0,57538.0,0.0765]
[1726005683533,0.93247792,57539.0,57538.0,0.0765]
[1726005683732,0.93647792,57539.0,57538.0,0.0485]
[1726005684029,0.94147792,57539.0,57538.0,0.0485]
[1726005687931,0.82147792,57539.0,57538.0,0.0485]
[1726005688136,0.94147792,57539.0,57538.0,0.0485]
[1726005688835,0.42007792,57539.0,57538.0,0.0485]
[1726005691737,0.004,57546.0,57538.0,1.2899]
[1726005691933,0.004,57549.0,57548.0,0.086879]
[1726005692133,0.004,57549.0,57544.0,0.12]
[1726005692134,0.086876,57550.0,57549.0,0.086878]
[1726005692542,0.086871,57554.0,57551.0,0.086874]
[1726005692735,0.086871,57554.0,57552.0,0.0464]
[1726005692934,0.004,57558.0,57552.0,0.0464]
[1726005692935,0.02866421,57557.0,57552.0,0.0464]
[1726005693243,0.02866421,57557.0,57555.0,0.086868]
[1726005693244,0.086867,57557.0,57555.0,0.086868]
[1726005693944,0.086867,57557.0,57554.0,0.12]
[1726005693945,0.086867,57556.0,57554.0,0.12]
[1726005694136,0.086869,57555.0,57552.0,0.133273]
[1726005694943,0.086869,57555.0,57553.0,0.0454]
[1726005695145,0.08687,57554.0,57553.0,0.0454]
[1726005696443,0.08887,57554.0,57553.0,0.0454]
[1726005696943,0.08687,57554.0,57553.0,0.0454]
[1726005699330,0.08687,57554.0,57552.0,0.0464]
[1726005699331,0.086872,57553.0,57552.0,0.0464]
[1726005699536,0.173744,57553.0,57552.0,0.0464]
[1726005701740,0.174744,57553.0,57552.0,0.0464]
[1726005702047,0.176744,57553.0,57552.0,0.0464]
[1726005702635,0.174744,57553.0,57552.0,0.0464]
[1726005702843,0.176744,57553.0,57552.0,0.0464]
[1726005703147,0.175744,57553.0,57552.0,0.0464]
[1726005703346,0.178744,57553.0,57552.0,0.0464]
[1726005704142,0.086885,57544.0,57541.0,0.05191985]
[1726005704343,0.086885,57544.0,57535.0,0.05191985]
[1726005704344,0.086893,57539.0,57535.0,0.05191985]
[1726005704546,0.0869,57534.0,57533.0,0.049]
[1726005706552,0.0869,57534.0,57533.0,0.063]
[1726005706950,0.0869,57534.0,57533.0,0.014]
[1726005706951,1.23640408,57534.0,57533.0,0.014]
[1726005707155,1.52330408,57534.0,57533.0,0.014]
[1726005707652,1.52330408,57534.0,57533.0,0.028]
[1726005708448,1.52330408,57534.0,57533.0,0.015]
[1726005708747,0.92330408,57534.0,57533.0,0.001]
[1726005708944,1.52330408,57534.0,57533.0,0.002]
[1726005709145,0.92330408,57534.0,57533.0,0.002]
[1726005709348,1.52330408,57534.0,57533.0,0.002]
[1726005709541,0.92330408,57534.0,57533.0,0.002]
[1726005710145,0.40186408,57534.0,57533.0,0.002]
[1726005710351,0.92330408,57534.0,57533.0,0.002]
[1726005712147,0.40186408,57534.0,57533.0,0.002]
[1726005712348,0.92330408,57534.0,57533.0,0.002]
[1726005713145,1.52330408,57534.0,57533.0,0.002]
[1726005717058,1.61020408,57534.0,57533.0,0.002]
[1726005719463,1.01020408,57534.0,57533.0,0.002]
[1726005721057,0.48876408,57534.0,57533.0,0.002]
[1726005724259,0.93020408,57534.0,57533.0,0.002]
[1726005724465,0.40876408,57534.0,57533.0,0.002]
[1726005724758,0.93020408,57534.0,57533.0,0.002]
[1726005724961,0.40876408,57534.0,57533.0,0.002]
[1726005726456,0.02806408,57534.0,57533.0,0.088902]
[1726005726768,0.004,57541.0,57540.0,0.086891]
[1726005726769,0.09089,57541.0,57540.0,0.086891]
[1726005727069,0.08689,57541.0,57540.0,0.086891]
[1726005727954,0.11484179,57541.0,57540.0,0.087891]
[1726005729164,0.09289,57541.0,57540.0,0.088891]
[1726005730361,0.08989,57541.0,57540.0,0.086891]
[1726005730672,0.09289,57541.0,57540.0,0.086891]
[1726005731363,0.09189,57541.0,57540.0,0.086891]
[1726005731867,0.005,57541.0,57540.0,0.086891]
[1726005732062,0.003,57541.0,57540.0,0.13881085]
[1726005732259,0.003,57541.0,57540.0,0.086891]
[1726005732565,0.002,57541.0,57540.0,0.13888271]
[1726005732871,0.002,57541.0,57540.0,0.13988271]
[1726005733165,0.08889,57541.0,57540.0,0.087891]
[1726005733356,0.08889,57541.0,57540.0,0.13888271]
[1726005733767,0.08689,57541.0,57540.0,0.086891]
[1726005733965,0.08689,57541.0,57540.0,0.087891]
[1726005734374,0.08689,57541.0,57540.0,0.13988271]
[1726005734562,0.08689,57541.0,57540.0,0.13888271]
[1726005734762,0.08789,57541.0,57540.0,0.13888271]
[1726005735365,0.08889,57541.0,57540.0,0.086891]
[1726005735564,0.08789,57541.0,57540.0,0.086891]
[1726005735967,0.08689,57541.0,57540.0,0.086891]
[1726005736673,0.08789,57541.0,57540.0,0.086891]
[1726005737669,0.08889,57541.0,57540.0,0.086891]
[1726005738868,0.08789,57541.0,57540.0,0.086891]
[1726005739271,0.08689,57541.0,57540.0,0.086891]
[1726005741867,0.08789,57541.0,57540.0,0.086891]
[1726005742279,0.08889,57541.0,57540.0,0.086891]
[1726005743871,0.086891,57540.0,57539.0,0.0476]
[1726005744264,0.173782,57540.0,57539.0,0.0476]
[1726005744466,0.086891,57540.0,57539.0,0.0476]
[1726005745073,0.086891,57540.0,57539.0,0.0486]
[1726005745670,0.086891,57540.0,57539.0,0.0496]
[1726005746072,0.086891,57540.0,57539.0,0.0486]
[1726005746275,0.089891,57540.0,57539.0,0.0486]
[1726005746681,0.086891,57540.0,57539.0,0.0486]
[1726005746868,0.086891,57540.0,57539.0,0.0476]
[1726005746869,0.087891,57540.0,57539.0,0.0476]
[1726005747176,0.089891,57540.0,57539.0,0.0476]
[1726005747777,0.087891,57540.0,57539.0,0.0476]
[1726005747978,0.086893,57539.0,57538.0,0.086894]
[1726005749773,0.173794,57536.0,57535.0,0.08683412]
[1726005749983,0.173794,57536.0,57534.0,0.13533412]
[1726005749984,0.086899,57535.0,57534.0,0.13533412]
[1726005750169,0.086899,57535.0,57534.0,0.23324191]
[1726005750874,0.086899,57535.0,57534.0,0.0485]
[1726005751275,0.086899,57535.0,57534.0,0.0505]
[1726005751667,0.173798,57535.0,57534.0,0.0505]
[1726005751874,0.173798,57535.0,57534.0,0.11988522]
[1726005752885,0.173798,57535.0,57534.0,0.0505]
[1726005753185,0.173798,57535.0,57534.0,0.0485]
[1726005753480,0.293798,57535.0,57534.0,0.11788522]
[1726005753671,0.293798,57535.0,57534.0,0.06938522]
[1726005754681,0.3184595,57535.0,57534.0,0.06938522]
[1726005754877,0.3184595,57535.0,57528.0,0.086909]
[1726005754878,0.1446615,57535.0,57530.0,0.08683412]
[1726005755082,0.29381,57531.0,57530.0,0.08683412]
[1726005755277,0.086906,57530.0,57528.0,0.08683412]
[1726005755580,0.12,57531.0,57528.0,0.08683412]
[1726005755581,0.173816,57529.0,57528.0,0.08683412]
[1726005755787,0.173816,57529.0,57528.0,0.18516732]
[1726005756175,0.173816,57529.0,57528.0,0.18512053]
[1726005756375,0.12,57531.0,57530.0,0.004]
[1726005756581,0.980715,57531.0,57530.0,0.004]
[1726005756880,1.502195,57531.0,57530.0,0.004]
[1726005757080,1.51078122,57531.0,57530.0,0.008]
[1726005757870,0.173834,57523.0,57522.0,0.05206742]
[1726005758184,0.373834,57523.0,57522.0,0.05206742]
[1726005758382,0.373834,57523.0,57520.0,0.05206742]
[1726005758383,0.08692,57521.0,57520.0,0.05206742]
[1726005758787,0.086924,57518.0,57517.0,0.06943697]
[1726005759490,0.086926,57517.0,57516.0,0.06943697]
[1726005760790,0.086927,57516.0,57515.0,0.15636497]
[1726005760990,0.086927,57516.0,57515.0,0.086928]
[1726005761389,0.086927,57516.0,57515.0,0.15622018]
[1726005761582,0.086927,57516.0,57515.0,0.086928]
[1726005762091,0.086927,57516.0,57515.0,0.15622018]
[1726005762588,0.086927,57516.0,57515.0,0.086928]
[1726005762781,0.086927,57516.0,57515.0,0.100928]
[1726005763381,0.086927,57516.0,57515.0,0.114928]
[1726005763880,0.086927,57516.0,57515.0,0.16686365]
[1726005765691,0.086927,57516.0,57515.0,0.114928]
[1726005766594,0.086927,57516.0,57515.0,0.16686365]
[1726005766895,0.1114366,57516.0,57515.0,0.114928]
[1726005771786,0.1114366,57516.0,57515.0,0.028]
[1726005772596,0.1114366,57516.0,57514.0,0.13886565]
[1726005772597,0.086926,57518.0,57517.0,0.086924]
[1726005773904,0.086926,57518.0,57517.0,0.097924]
[1726005774908,0.086926,57518.0,57517.0,0.108924]
[1726005775800,0.086926,57518.0,57517.0,0.154524]
[1726005777392,0.086926,57518.0,57517.0,0.20645965]
[1726005778404,0.086926,57518.0,57517.0,0.154524]
[1726005780409,0.086916,57524.0,57523.0,0.086915]
[1726005781004,0.086916,57524.0,57523.0,0.504815]
[1726005781608,0.086916,57524.0,57523.0,0.20417351]
[1726005781810,0.11209883,57524.0,57523.0,0.20817351]
[1726005782004,0.12,57525.0,57524.0,0.086915]
[1726005782210,0.12,57525.0,57524.0,0.2020993]
[1726005782504,0.12,57525.0,57524.0,0.132715]
[1726005783099,0.206914,57525.0,57524.0,0.132715]
[1726005783394,0.206914,57525.0,57524.0,0.135715]
[1726005784612,0.206914,57525.0,57524.0,0.138715]
[1726005785405,0.206914,57525.0,57524.0,0.32432282]
[1726005786913,0.206914,57525.0,57524.0,0.23753549]
[1726005787109,0.206914,57525.0,57524.0,0.32437285]
[1726005787908,0.206914,57525.0,57524.0,0.32435156]
[1726005788708,0.206914,57525.0,57524.0,0.138715]
[1726005789220,0.293828,57525.0,57524.0,0.0518]
[1726005789416,0.293828,57525.0,57524.0,0.006]
[1726005789720,0.293828,57525.0,57521.0,0.05210439]
[1726005789721,1.374834,57525.0,57521.0,0.05210439]
[1726005789930,0.02818182,57524.0,57512.0,0.07346528]
[1726005790221,0.14997862,57525.0,57512.0,0.07346528]
[1726005790222,0.086923,57519.0,57518.0,0.086924]
[1726005790407,0.206923,57519.0,57518.0,0.15638928]
[1726005790921,0.206923,57519.0,57518.0,0.086924]
[1726005791105,0.086924,57518.0,57517.0,0.06946528]
[1726005791418,0.086924,57518.0,57514.0,0.086929]
[1726005791419,0.086927,57516.0,57514.0,0.06946528]
[1726005791609,0.173862,57514.0,57513.0,0.05209729]
[1726005791922,0.086926,57517.0,57512.0,0.014]
[1726005791923,0.086932,57513.0,57512.0,0.014]
[1726005792119,0.253332,57513.0,57512.0,0.100934]
[1726005792416,0.1664,57513.0,57512.0,0.086934]
[1726005792607,0.1664,57513.0,57512.0,0.15639928]
[1726005792810,0.12,57516.0,57515.0,0.086929]
[1726005793007,0.004,57517.0,57516.0,0.086927]
[1726005793218,0.12,57522.0,57519.0,0.086922]
[1726005793517,0.12,57522.0,57521.0,0.05206686]
[1726005793716,0.12,57522.0,57519.0,0.15634448]
[1726005794118,0.08692,57521.0,57519.0,0.15634448]
[1726005794302,0.086923,57519.0,57518.0,0.06942248]
[1726005794508,0.206923,57519.0,57518.0,0.06942248]
[1726005795021,0.086924,57518.0,57517.0,0.06942248]
[1726005795420,0.173852,57517.0,57516.0,0.008]
[1726005795714,0.086927,57516.0,57515.0,0.05206943]
[1726005795922,0.206927,57516.0,57515.0,0.05206943]
[1726005796311,0.206927,57516.0,57514.0,0.05206943]
[1726005796312,0.086929,57515.0,57514.0,0.05206943]
[1726005796517,0.206929,57515.0,57514.0,0.05206943]
[1726005796717,0.086932,57513.0,57512.0,0.06942248]
[1726005797115,0.12,57515.0,57512.0,0.06941362]
[1726005797320,0.206929,57515.0,57514.0,0.05206022]
[1726005797524,0.086932,57513.0,57512.0,0.06941362]
[1726005798218,0.002,57516.0,57515.0,0.086929]
[1726005798819,0.001,57516.0,57515.0,0.086929]
[1726005799116,0.086927,57517.0,57515.0,0.086929]
[1726005799320,0.086927,57517.0,57515.0,0.15632948]
[1726005799522,0.086927,57517.0,57515.0,0.086929]
[1726005799720,0.001,57516.0,57515.0,0.095929]
[1726005799923,0.002,57516.0,57515.0,0.17532948]
[1726005800116,0.002,57516.0,57515.0,1.37607736]
[1726005800524,0.001,57516.0,57515.0,1.37607736]
[1726005800716,0.001,57516.0,57515.0,0.25447736]
[1726005801022,0.001,57517.0,57516.0,0.086927]
[1726005801226,0.002,57517.0,57516.0,0.086927]
[1726005801924,0.002,57517.0,57516.0,0.15632196]
[1726005802120,0.001,57517.0,57516.0,0.15632196]
[1726005802823,0.087926,57517.0,57516.0,0.095927]
[1726005803621,0.088926,57517.0,57516.0,0.017]
[1726005804020,0.134126,57517.0,57516.0,0.017]
[1726005804221,0.221052,57517.0,57516.0,0.017]
[1726005808726,0.24630476,57517.0,57516.0,0.017]
[1726005809717,0.33323076,57517.0,57516.0,0.017]
[1726005809919,0.086943,57506.0,57503.0,0.004]
[1726005810124,0.12,57504.0,57496.0,0.05203239]